{"text_format":"1","workbook":"xlsx","n_sheets":6,"sheets":["Feuil1","Feuil2","Feuil3","Feuil4","Feuil5","Données"],"not_rendered":{"charts":0,"images":2,"macros":1,"external_links":0,"defined_names":0,"comments":0,"pivot_tables":0},"unopened":[],"bounds":{"document_bytes":16777216,"sheet_cells":100000,"rows_first":2000,"rows_last":500,"rows_between":2000,"halvings":0,"cell_chars":16384,"cell_head_chars":4096},"cells_cut":0,"cells_raw":0,"read":"whole","date_system":"1900"}

{"sheet":"Feuil1","index":0,"n_rows":2,"n_cols":17,"rows_kept":2,"cut":false,"hidden":false,"merged":[]}
[null,null,null,null,null,null,null,null,null,null,null,1,null,null,1]
[null,null,null,null,null,null,null,null,null,null,null,null,null,1,null,1,0]

{"sheet":"Feuil2","index":1,"n_rows":11,"n_cols":17,"rows_kept":11,"cut":false,"hidden":false,"merged":[]}
[null,null,null,null,null,null,null,null,null,null,1,null,{"$f":"COUNTIF(A1:J10,1)","v":0},{"$f":"COUNTIF(A1:J10,2)","v":0},{"$f":"COUNTIF(A1:J10,3)","v":0},{"$f":"COUNTIF(A1:J10,4)","v":0},{"$f":"COUNTIF(A1:J10,5)","v":0}]
[null,null,null,null,null,null,null,null,null,null,2,null,{"$f":"SUM(M1:Q1)","v":0}]
[null,null,null,null,null,null,null,null,null,null,3]
[null,null,null,null,null,null,null,null,null,null,4]
[null,null,null,null,null,null,null,null,null,null,5]
[null,null,null,null,null,null,null,null,null,null,6]
[null,null,null,null,null,null,null,null,null,null,7]
[null,null,null,null,null,null,null,null,null,null,8]
[null,null,null,null,null,null,null,null,null,null,9]
[null,null,null,null,null,null,null,null,null,null,10]
["A","B","C","D","E","F","G","H","I","J"]

{"sheet":"Feuil3","index":2,"n_rows":11,"n_cols":17,"rows_kept":11,"cut":false,"hidden":false,"merged":[]}
[null,null,null,null,null,null,null,null,null,null,1,null,{"$f":"COUNTIF(A1:J10,1)","v":0},{"$f":"COUNTIF(A1:J10,2)","v":0},{"$f":"COUNTIF(A1:J10,3)","v":0},{"$f":"COUNTIF(A1:J10,4)","v":0},{"$f":"COUNTIF(A1:J10,5)","v":0}]
[null,null,null,null,null,null,null,null,null,null,2,null,{"$f":"SUM(M1:Q1)","v":0},1]
[null,null,null,null,null,null,null,null,null,null,3]
[null,null,null,null,null,null,null,null,null,null,4]
[null,null,null,null,null,null,null,null,null,null,5]
[null,null,null,null,null,null,null,null,null,null,6]
[null,null,null,null,null,null,null,null,null,null,7]
[null,null,null,null,null,null,null,null,null,null,8]
[null,null,null,null,null,null,null,null,null,null,9]
[null,null,null,null,null,null,null,null,null,null,10]
["A","B","C","D","E","F","G","H","I","J"]

{"sheet":"Feuil4","index":3,"n_rows":11,"n_cols":17,"rows_kept":11,"cut":false,"hidden":false,"merged":[]}
[null,null,null,null,null,null,null,null,null,null,1,null,{"$f":"COUNTIF(A1:J10,1)","v":0},{"$f":"COUNTIF(A1:J10,2)","v":0},{"$f":"COUNTIF(A1:J10,3)","v":0},{"$f":"COUNTIF(A1:J10,4)","v":0},{"$f":"COUNTIF(A1:J10,5)","v":0}]
[null,null,null,null,null,null,null,null,null,null,2,null,{"$f":"SUM(M1:Q1)","v":0}]
[null,null,null,null,null,null,null,null,null,null,3]
[null,null,null,null,null,null,null,null,null,null,4]
[null,null,null,null,null,null,null,null,null,null,5]
[null,null,null,null,null,null,null,null,null,null,6]
[null,null,null,null,null,null,null,null,null,null,7]
[null,null,null,null,null,null,null,null,null,null,8]
[null,null,null,null,null,null,null,null,null,null,9]
[null,null,null,null,null,null,null,null,null,null,10]
["A","B",5,"D","E","F","G","H","I","J"]

{"sheet":"Feuil5","index":4,"n_rows":11,"n_cols":17,"rows_kept":11,"cut":false,"hidden":false,"merged":[]}
[null,null,null,null,null,null,null,null,null,null,1,null,{"$f":"COUNTIF(A1:J10,1)","v":0},{"$f":"COUNTIF(A1:J10,2)","v":0},{"$f":"COUNTIF(A1:J10,3)","v":0},{"$f":"COUNTIF(A1:J10,4)","v":0},{"$f":"COUNTIF(A1:J10,5)","v":0}]
[null,null,null,null,null,null,null,null,null,null,2,null,{"$f":"SUM(M1:Q1)","v":0}]
[null,null,null,null,null,null,null,null,null,null,3]
[null,null,null,null,null,null,null,null,null,null,4]
[null,null,null,null,null,null,null,null,null,null,5]
[null,null,null,null,null,null,null,null,null,null,6]
[null,null,null,null,null,null,null,null,null,null,7]
[null,null,null,null,null,null,null,null,null,null,8]
[null,null,null,null,null,null,null,null,null,null,9]
[null,null,null,null,null,null,null,null,null,null,10]
["A","B","C","D","E","F","G","H","I","J"]

{"sheet":"Données","index":5,"n_rows":17,"n_cols":6,"rows_kept":17,"cut":false,"hidden":false,"merged":[]}
[]
[]
["Nom du joueur en jeu","Clément",null,"Bombe nucléaire","Radar","Frappe aérienne"]
["joueur 1","Clément","Nb bonus restant",11,1,1]
["joueur 2","Lucas","Nb bonus restant",11,1,1]
[null,null,null,null,null,0]
[null,null,null,"nb joueurs"]
[null,null,null,2,2,0]
[]
[null,null,null,null,null,0]
[]
[null,null,null,"mode de jeu",2]
[null,null,null,"1=Original"]
[null,null,null,"2=Moderne"]
[]
[]
[null,{"$f":"SUM(B7:B15)","v":0}]